bitfinex/quotes_BTCUSD_20250726
["timestamp","ask_amount","ask_price","bid_price","bid_amount"]
[1753526145312,0.38237831,117980.0,117970.0,20.75637892]
[1753526145515,0.38237831,117980.0,117970.0,20.76485543]
[1753526146176,0.38237831,117980.0,117970.0,20.75637892]
[1753526146910,0.38237889,117980.0,117970.0,20.74790234]
[1753526147111,0.37390288,117980.0,117970.0,20.75637892]
[1753526147544,0.37390288,117980.0,117970.0,20.76646499]
[1753526147951,0.37390288,117980.0,117970.0,20.75798841]
[1753526148175,0.37390288,117980.0,117970.0,20.76646499]
[1753526148998,0.37390288,117980.0,117970.0,20.75798841]
[1753526149201,0.38237882,117980.0,117970.0,20.76646499]
[1753526149621,0.38237882,117980.0,117970.0,20.75798841]
[1753526149817,0.52862205,117980.0,117970.0,20.2610873]
[1753526153922,0.52862205,117980.0,117970.0,20.2610473]
[1753526154782,0.52862205,117980.0,117970.0,20.04769]
[1753526154783,0.52882197,117980.0,117970.0,20.04769]
[1753526154975,0.52882197,117980.0,117970.0,20.15397]
[1753526155618,0.52882197,117980.0,117970.0,20.02509]
[1753526155830,0.52882197,117980.0,117970.0,20.15397]
[1753526156856,0.55312197,117980.0,117970.0,20.15393]
[1753526157140,0.55624197,117980.0,117970.0,20.15393]
[1753526158509,0.55312197,117980.0,117970.0,20.15393]
[1753526159664,0.55624197,117980.0,117970.0,20.15393]
[1753526160778,0.55312197,117980.0,117970.0,20.15393]
[1753526161673,0.83513574,117980.0,117970.0,20.02509]
[1753526161887,0.83825574,117980.0,117970.0,20.15401]
[1753526162080,0.83825574,117980.0,117970.0,20.02509]
[1753526162316,0.85915574,117980.0,117970.0,20.13088]
[1753526164063,0.85915574,117980.0,117970.0,20.002]
[1753526164268,0.86007574,117980.0,117970.0,20.13088]
[1753526164724,0.85915574,117980.0,117970.0,20.13088]
[1753526165664,0.85915574,117980.0,117970.0,20.15465]
[1753526165903,0.83825574,117980.0,117970.0,20.15465]
[1753526166817,0.87400854,117980.0,117970.0,20.15465]
[1753526167330,0.87088854,117980.0,117970.0,20.15465]
[1753526169878,0.87088854,117980.0,117970.0,20.15787]
[1753526170753,0.87088854,117980.0,117970.0,20.02899]
[1753526170991,0.87088854,117980.0,117970.0,20.15795]
[1753526172006,0.34867535,117980.0,117970.0,20.70152792]
[1753526172225,0.35695101,117980.0,117970.0,20.80295831]
[1753526172435,0.35695101,117980.0,117970.0,20.81143461]
[1753526172648,0.35695101,117980.0,117970.0,20.81991083]
[1753526173073,0.35695101,117980.0,117970.0,20.81143461]
[1753526173284,0.35695101,117980.0,117970.0,20.90438813]
[1753526174644,0.36542673,117980.0,117970.0,20.88743561]
[1753526174881,0.36542673,117980.0,117970.0,20.86048224]
[1753526175093,0.37390259,117980.0,117970.0,20.86048224]
[1753526175311,0.37390252,117980.0,117970.0,20.86048224]
[1753526175549,0.38237838,117980.0,117970.0,20.77600501]
[1753526176424,0.38237838,117980.0,117970.0,20.78448138]
[1753526176642,0.38237838,117980.0,117970.0,20.77600501]
[1753526176845,0.38237838,117980.0,117970.0,20.76752857]
[1753526177772,0.38237889,117980.0,117970.0,20.76752857]
[1753526177986,0.38237889,117980.0,117970.0,20.75905206]
[1753526178856,0.38237932,117980.0,117970.0,20.75905206]
[1753526179495,0.37390331,117980.0,117970.0,20.76752864]
[1753526179728,0.37390331,117980.0,117970.0,20.76752871]
[1753526180174,0.37390331,117980.0,117970.0,20.86048252]
[1753526180397,0.37390331,117980.0,117970.0,20.85200601]
[1753526180629,0.37390331,117980.0,117970.0,20.84352943]
[1753526180910,0.37390331,117980.0,117970.0,20.85200594]
[1753526181130,0.38237932,117980.0,117970.0,20.76752871]
[1753526181555,0.38237932,117980.0,117970.0,20.75057548]
[1753526181763,0.3739036,117980.0,117970.0,20.75057548]
[1753526182108,0.3739036,117980.0,117970.0,20.75905213]
[1753526182312,0.3739036,117980.0,117970.0,20.75057548]
[1753526182530,0.3739036,117980.0,117970.0,20.83505278]
[1753526183132,0.3739036,117980.0,117970.0,20.84352943]
[1753526183587,0.3739036,117980.0,117970.0,20.5611926]
[1753526183822,0.3739036,117980.0,117970.0,20.75057548]
[1753526183977,0.3739036,117980.0,117970.0,20.75905213]
[1753526184709,0.3739036,117980.0,117970.0,20.75057548]
[1753526185477,0.53494806,117980.0,117970.0,20.74209875]
[1753526187067,0.5264722,117980.0,117970.0,20.74209875]
[1753526187535,0.5264722,117980.0,117970.0,20.45976192]
[1753526188101,0.51799626,117980.0,117970.0,20.45976192]
[1753526188313,0.51799626,117980.0,117970.0,20.45968192]
[1753526189872,0.51799626,117980.0,117970.0,20.54415922]
[1753526190090,0.51799626,117980.0,117970.0,20.45968192]
[1753526191006,0.51799626,117980.0,117970.0,20.33080192]
[1753526191248,0.51799626,117980.0,117970.0,20.45968192]
[1753526193042,0.51799626,117980.0,117970.0,20.43618192]
[1753526193816,0.51799626,117980.0,117970.0,20.1377673]
[1753526194039,0.52025618,117980.0,117970.0,20.05007]
[1753526194300,0.52025618,117980.0,117970.0,20.17895]
[1753526194946,0.83798185,117980.0,117970.0,20.15465]
[1753526195168,0.86098185,117980.0,117970.0,20.15465]
[1753526196968,0.86098185,117980.0,117970.0,20.02577]
[1753526197187,0.86098185,117980.0,117970.0,20.15465]
[1753526200776,0.54325618,117980.0,117970.0,20.17665]
[1753526201019,0.54325618,117980.0,117970.0,20.66685029]
[1753526201275,0.54325618,117980.0,117970.0,20.75132759]
[1753526201276,0.3486755,117980.0,117970.0,20.75132759]
[1753526201484,0.38257838,117980.0,117970.0,20.78190432]
[1753526201632,0.38257817,117980.0,117970.0,20.79038097]
[1753526202416,0.38257817,117980.0,117970.0,20.79885755]
[1753526202662,0.38257809,117980.0,117970.0,20.79038097]
[1753526202875,0.01695087,117980.0,117970.0,20.80065741]
[1753526203122,0.34867463,117990.0,117980.0,0.22419626]
[1753526203331,0.01485257,118000.0,117990.0,0.19330589]
[1753526203539,0.02312665,118000.0,117990.0,0.77720423]
[1753526203772,0.00617837,118000.0,117990.0,0.80091423]
[1753526204010,0.35465237,118000.0,117990.0,0.80938902]
[1753526204272,0.348474,118000.0,117990.0,0.80938902]
[1753526204672,0.349474,118000.0,117990.0,0.80938902]
[1753526204891,0.341,118000.0,117990.0,0.64501257]
[1753526205145,0.341,118000.0,117990.0,0.77389257]
[1753526206327,0.34847392,118000.0,117990.0,0.77389257]
[1753526206739,0.35794799,118000.0,117990.0,0.77389257]
[1753526207315,0.34947392,118000.0,117990.0,0.77389257]
[1753526207518,0.341,118000.0,117990.0,0.77389257]
[1753526208397,0.34947392,118000.0,117990.0,0.77389257]
[1753526208615,0.001,118000.0,117990.0,0.85836987]
[1753526208844,0.001,118000.0,117990.0,0.77389257]
[1753526210957,0.01694261,118040.0,118030.0,0.0243]
[1753526211172,0.02541366,118040.0,118030.0,0.58915496]
[1753526211453,0.02541424,118040.0,118030.0,0.93138731]
[1753526211724,0.35694261,118040.0,118030.0,0.95568731]
[1753526211941,0.36541417,118040.0,118030.0,0.67345816]
[1753526212161,0.76541417,118040.0,118030.0,0.68241489]
[1753526212370,0.75694261,118040.0,118030.0,0.75001876]
[1753526212575,0.75794261,118040.0,118030.0,0.98158858]
[1753526212802,0.001,118040.0,118030.0,0.9900602]
[1753526213841,0.34846962,118060.0,118050.0,0.18636133]
[1753526214093,0.35693945,118060.0,118050.0,0.73958847]
[1753526214274,0.35693945,118060.0,118050.0,0.47553863]
[1753526214488,0.37387948,118060.0,118050.0,0.74929723]
[1753526214693,0.36540936,118060.0,118050.0,0.757768]
[1753526214891,0.35693945,118060.0,118050.0,0.76623869]
[1753526215140,0.35693945,118060.0,118050.0,0.81869512]
[1753526215544,0.34,118060.0,118050.0,0.81869512]
[1753526215780,0.36560806,118070.0,118060.0,0.19210538]
[1753526215989,0.53499909,118070.0,118060.0,0.7176719]
[1753526216222,0.53499909,118070.0,118060.0,0.43544268]
[1753526216437,0.53499909,118070.0,118060.0,0.7176719]
[1753526217062,0.36660806,118070.0,118060.0,0.7176719]
[1753526217539,0.53599909,118070.0,118060.0,0.7176719]
[1753526217753,0.53699909,118070.0,118060.0,0.7176719]
[1753526219439,0.36740756,118070.0,118060.0,0.7176719]
[1753526219607,0.37587711,118070.0,118060.0,0.7176719]
[1753526219836,0.36740756,118070.0,118060.0,0.7176719]
[1753526219958,0.37587711,118070.0,118060.0,0.7176719]
[1753526220591,0.35893816,118070.0,118060.0,0.7176719]
[1753526220803,0.35893809,118070.0,118060.0,0.75831207]
[1753526221029,0.3504689,118070.0,118060.0,0.85125913]
[1753526221236,0.002,118070.0,118060.0,0.48455261]
[1753526221451,0.01893816,118070.0,118060.0,0.32898268]
[1753526221705,0.19035962,118070.0,118060.0,0.43532268]
[1753526221915,0.53035962,118070.0,118060.0,0.43532268]
[1753526222138,0.52935962,118070.0,118060.0,0.30528268]
[1753526222366,0.52835962,118070.0,118060.0,0.43540268]
[1753526222575,0.52835962,118070.0,118060.0,0.43640268]
[1753526222785,0.52835962,118070.0,118060.0,0.43740268]
[1753526223632,0.51989043,118070.0,118060.0,0.43446268]
[1753526223848,0.51989043,118070.0,118060.0,0.1328873]
[1753526224089,0.51989043,118070.0,118060.0,0.2629673]
[1753526224311,0.51989043,118070.0,118060.0,0.1328873]
[1753526224624,0.51142103,118070.0,118060.0,0.2629673]
[1753526225038,0.91142103,118070.0,118060.0,0.1328873]
[1753526225286,0.91142103,118070.0,118060.0,0.2629673]
[1753526225610,0.91142103,118070.0,118060.0,0.43237268]
[1753526226030,0.91989043,118070.0,118060.0,0.43237268]
[1753526226833,0.75896852,118070.0,118060.0,0.44595287]
[1753526227050,0.76540749,118070.0,118060.0,0.44595294]
[1753526227478,0.77590689,118070.0,118060.0,0.30740268]
[1753526227699,0.76743792,118070.0,118060.0,0.43740268]
[1753526227932,0.76743792,118070.0,118060.0,0.7196319]
[1753526228177,0.77590747,118070.0,118060.0,0.43740268]
[1753526228402,0.77590747,118070.0,118060.0,0.44587294]
[1753526228616,0.77590747,118070.0,118060.0,0.43740268]
[1753526228839,0.37590747,118070.0,118060.0,0.43740268]
[1753526229518,0.37590747,118070.0,118060.0,0.44587294]
[1753526229948,0.37590747,118070.0,118060.0,0.43740268]
[1753526230648,0.36743792,118070.0,118060.0,0.44587287]
[1753526230873,0.36743749,118070.0,118060.0,0.8041092]
[1753526231096,0.37590689,118070.0,118060.0,0.82104965]
[1753526231539,0.37590689,118070.0,118060.0,0.43740268]
[1753526231753,0.36743749,118070.0,118060.0,0.7196319]
[1753526231943,0.36540749,118070.0,118060.0,0.72810216]
[1753526232163,0.37387697,118070.0,118060.0,0.45434313]
[1753526232388,0.36540742,118070.0,118060.0,0.73657235]
[1753526232585,0.3823463,118070.0,118060.0,0.72818216]
[1753526232806,0.77590675,118070.0,118060.0,0.72818216]
[1753526233108,0.78437673,118070.0,118060.0,0.59810216]
[1753526233346,0.78437673,118070.0,118060.0,0.72814216]
[1753526233478,0.78437673,118070.0,118060.0,0.44591294]
[1753526233695,0.78437673,118070.0,118060.0,0.76758219]
[1753526233696,0.74846897,118070.0,118060.0,0.76758219]
[1753526233902,0.75693801,118070.0,118060.0,0.7421719]
[1753526234106,0.75693801,118070.0,118060.0,0.63754219]
[1753526234308,0.77330472,118070.0,118060.0,0.76758219]
[1753526234608,0.77330465,118070.0,118060.0,0.75911221]
[1753526234773,0.77330465,118070.0,118060.0,0.76758219]
[1753526234963,0.76483546,118070.0,118060.0,0.77605202]
[1753526235158,0.76483546,118070.0,118060.0,0.7760521]
[1753526235368,0.77330465,118070.0,118060.0,0.7760521]
[1753526235562,0.74789745,118070.0,118060.0,0.86052925]
[1753526235779,0.74,118070.0,118060.0,0.57830003]
[1753526235983,0.34,118070.0,118060.0,0.77605195]
[1753526236185,0.3484689,118070.0,118060.0,0.49382273]
[1753526236386,0.34790281,118070.0,118060.0,0.77605195]
[1753526236585,0.3648409,118070.0,118060.0,0.76758219]
[1753526236794,0.35637178,118070.0,118060.0,0.77605202]
[1753526236998,0.36484082,118070.0,118060.0,0.78452178]
[1753526237193,0.36484082,118070.0,118060.0,0.76758219]
[1753526237546,0.36484082,118070.0,118060.0,0.81646805]
[1753526237764,0.34790281,118070.0,118060.0,0.81646805]
[1753526237986,0.34790281,118070.0,118060.0,0.82493781]
[1753526238432,0.34790281,118070.0,118060.0,0.54270859]
[1753526238686,0.35637171,118070.0,118060.0,0.78452178]
[1753526238919,0.34790281,118070.0,118060.0,0.78452178]
[1753526239405,0.34790281,118070.0,118060.0,0.50229256]
[1753526239615,0.34790281,118070.0,118060.0,0.78452178]
[1753526240142,0.34790281,118070.0,118060.0,0.83269257]
[1753526242136,0.34790281,118070.0,118060.0,0.78452178]
[1753526242969,0.36484111,118070.0,118060.0,0.31076294]
[1753526243215,0.37331044,118070.0,118060.0,0.46345318]
[1753526243423,0.37534044,118070.0,118060.0,0.46345318]
[1753526243625,0.36687111,118070.0,118060.0,0.7456824]
[1753526243833,0.36687111,118070.0,118060.0,0.45498313]
[1753526244034,0.37534044,118070.0,118060.0,0.44651287]
[1753526244364,0.36687104,118070.0,118060.0,0.53946015]
[1753526244800,0.37534037,118070.0,118060.0,0.53946022]
[1753526245009,0.37534037,118070.0,118060.0,0.4172902]
[1753526245215,0.37534037,118070.0,118060.0,0.45498292]
[1753526245641,0.55320088,118070.0,118060.0,0.43494268]
[1753526245839,0.55320088,118070.0,118060.0,0.43293268]
[1753526246329,0.54473184,118070.0,118060.0,0.43293268]
[1753526246940,0.54473184,118070.0,118060.0,0.30229268]
[1753526247193,0.53626265,118070.0,118060.0,0.30229268]
[1753526247407,0.21213218,118070.0,118060.0,0.30229268]
[1753526247616,0.23798338,118070.0,118060.0,0.38668268]
[1753526247828,0.23493338,118070.0,118060.0,0.41099268]
[1753526248266,0.21213338,118070.0,118060.0,0.43309268]
[1753526249015,0.61213338,118070.0,118060.0,0.43309268]
[1753526250088,0.61216731,118070.0,118060.0,0.43309268]
[1753526250300,0.58835984,118070.0,118060.0,0.43309268]
[1753526250474,0.61217006,118070.0,118060.0,0.43309268]
[1753526250686,0.42381022,118070.0,118060.0,0.7958196]
[1753526250912,0.40793674,118070.0,118060.0,0.77837058]
[1753526251099,0.41640571,118070.0,118060.0,0.77837073]
[1753526251298,0.41640571,118070.0,118060.0,0.78684049]
[1753526251476,0.00793674,118070.0,118060.0,0.78684049]
[1753526252545,0.00793674,118070.0,118060.0,0.50461127]
[1753526252765,0.00793674,118070.0,118060.0,0.78684049]
[1753526254696,0.00793674,118070.0,118060.0,0.50461127]
[1753526254882,0.41693658,118080.0,118070.0,0.18632991]
[1753526255107,0.4333418,118080.0,118070.0,0.24663917]
[1753526255312,0.43334187,118080.0,118070.0,0.24663917]
[1753526255607,0.40793668,118080.0,118070.0,0.79831957]
[1753526255815,0.40793668,118080.0,118070.0,0.81576859]
[1753526256240,0.40793668,118080.0,118070.0,0.59835621]
[1753526256359,0.40793668,118080.0,118070.0,0.88058543]
[1753526256565,0.00793668,118080.0,118070.0,0.88058543]
[1753526256803,0.00793668,118080.0,118070.0,0.88158543]
[1753526257168,0.00793668,118080.0,118070.0,0.88058543]
[1753526257396,0.40793668,118090.0,118080.0,0.25893134]
[1753526257610,0.00793668,118090.0,118080.0,0.43004594]
[1753526257821,0.00793668,118090.0,118080.0,0.73965516]
[1753526258176,0.40813668,118100.0,118090.0,0.21221485]
[1753526258463,0.40813668,118100.0,118090.0,0.78716137]
[1753526259838,0.4068583,118100.0,118090.0,0.78716137]
[1753526260056,0.4068583,118100.0,118090.0,0.84338175]
[1753526260468,0.4078583,118100.0,118090.0,0.56115253]
[1753526260727,0.4078583,118100.0,118090.0,0.50493215]
[1753526260924,0.4012,118100.0,118090.0,0.78716137]
[1753526262261,0.4002,118100.0,118090.0,0.78716137]
[1753526262681,0.4012,118100.0,118090.0,0.78716137]
[1753526262833,0.4012,118100.0,118090.0,0.78816137]
[1753526263041,0.4002,118100.0,118090.0,0.87263867]
[1753526263482,0.4002,118100.0,118090.0,0.87363867]
[1753526264146,0.40866675,118100.0,118090.0,0.87363867]
[1753526264597,0.4002,118100.0,118090.0,0.87363867]
[1753526264864,0.40866675,118100.0,118090.0,0.87363867]
[1753526265090,0.40866675,118100.0,118090.0,0.86517106]
[1753526265318,0.4361983,118100.0,118090.0,0.43704965]
[1753526265523,0.4361983,118100.0,118090.0,0.44551776]
[1753526265778,0.60554631,118100.0,118090.0,0.43704965]
[1753526266362,0.58861259,118100.0,118090.0,0.2654473]
[1753526266560,0.58014541,118100.0,118090.0,0.2654473]
[1753526267216,1.20542463,118100.0,118090.0,0.1093773]
[1753526267420,1.20542463,118100.0,118090.0,0.2411373]
[1753526267630,1.20237463,118100.0,118090.0,0.2654473]
[1753526268024,0.91801541,118100.0,118090.0,0.2654473]
[1753526268251,0.91801541,118100.0,118090.0,0.1336873]
[1753526268462,0.91801541,118100.0,118090.0,0.2654873]
[1753526269109,0.91801541,118100.0,118090.0,0.2644873]
[1753526269713,0.91801541,118100.0,118090.0,0.2634873]
[1753526269961,0.52014541,118100.0,118090.0,0.2634873]
[1753526270520,0.52339533,118100.0,118090.0,0.1073773]
[1753526270721,0.52034533,118100.0,118090.0,0.2636873]
[1753526270925,0.52339533,118100.0,118090.0,0.2393773]
[1753526271133,0.52034533,118100.0,118090.0,0.2636873]
[1753526271548,0.80562455,118100.0,118090.0,0.1073773]
[1753526271880,0.80562455,118100.0,118090.0,0.2392973]
[1753526272255,0.80257455,118100.0,118090.0,0.2636073]
[1753526272784,0.02540563,118080.0,118070.0,0.21688541]
[1753526272983,0.18844399,118080.0,118070.0,0.24119168]
[1753526273189,0.47372321,118080.0,118070.0,0.21688168]
[1753526273396,0.19149399,118080.0,118070.0,0.43328271]
[1753526273530,0.19149399,118080.0,118070.0,0.44175226]
[1753526273730,0.19149399,118080.0,118070.0,0.43328271]
[1753526273932,0.18844399,118080.0,118070.0,0.53469889]
[1753526274143,0.18844399,118080.0,118070.0,0.52622949]
[1753526274362,0.18844399,118080.0,118070.0,0.51776001]
[1753526274646,0.17997545,118080.0,118070.0,0.51776001]
[1753526274877,0.17997545,118080.0,118070.0,0.44175211]
[1753526275127,0.17997545,118080.0,118070.0,0.44175219]
[1753526275334,0.18302545,118080.0,118070.0,0.44175226]
[1753526275985,0.17997545,118080.0,118070.0,0.44175226]
[1753526276202,0.0190673,118080.0,118070.0,0.45238166]
[1753526276376,0.18844399,118080.0,118070.0,0.44175226]
[1753526277014,0.18844399,118080.0,118070.0,0.43328271]
[1753526277440,0.17997545,118080.0,118070.0,0.30136271]
[1753526277696,0.17997545,118080.0,118070.0,0.43320271]
[1753526278996,0.17997545,118080.0,118070.0,0.26381168]
[1753526279219,0.17997545,118080.0,118070.0,0.26373168]
[1753526279639,0.17997545,118080.0,118070.0,0.26385168]
[1753526280509,0.17150669,118080.0,118070.0,0.26385168]
[1753526280718,0.17150669,118080.0,118070.0,0.43324271]
[1753526283829,0.17150669,118080.0,118070.0,0.44171219]
[1753526284228,0.17150669,118080.0,118070.0,0.43324271]
[1753526284693,0.17150669,118080.0,118070.0,0.47672476]
[1753526285153,0.17150669,118080.0,118070.0,0.47976476]
[1753526285397,0.17150669,118080.0,118070.0,0.43324271]
[1753526287155,0.17447669,118080.0,118070.0,0.26385168]
[1753526287389,0.19607669,118080.0,118070.0,0.26385168]
[1753526287811,0.19607669,118080.0,118070.0,0.24115168]
[1753526288268,0.47830591,118080.0,118070.0,0.21684168]
[1753526288539,0.19607669,118080.0,118070.0,0.21684168]
[1753526288953,0.19607669,118080.0,118070.0,0.24160168]
[1753526289677,0.19607669,118080.0,118070.0,0.21684168]
[1753526289891,0.19627661,118080.0,118070.0,0.21684168]
[1753526290117,0.0084684,118080.0,118070.0,0.38837271]
[1753526290334,0.02540577,118080.0,118070.0,0.78064167]
[1753526290541,0.03387395,118080.0,118070.0,0.45511174]
[1753526290746,0.03387395,118080.0,118070.0,0.46358114]
[1753526290952,0.04234278,118080.0,118070.0,0.46358114]
[1753526291102,0.44234278,118080.0,118070.0,0.46358114]
[1753526291847,0.61171947,118080.0,118070.0,0.46358114]
[1753526292045,0.60325129,118080.0,118070.0,0.46358114]
[1753526292457,0.60536129,118080.0,118070.0,0.46358114]
[1753526292855,0.60325129,118080.0,118070.0,0.46358114]
[1753526293316,0.60325129,118080.0,118070.0,0.47205047]
[1753526293440,0.60325129,118080.0,118070.0,0.46358114]
[1753526293858,0.59478289,118080.0,118070.0,0.45511174]
[1753526294071,0.59478289,118080.0,118070.0,0.47205047]
[1753526294918,0.59689289,118080.0,118070.0,0.45840114]
[1753526295126,0.59689289,118080.0,118070.0,0.46687047]
[1753526295367,0.59689289,118080.0,118070.0,0.46901047]
[1753526295615,0.59689289,118080.0,118070.0,0.46358114]
[1753526296136,0.59689289,118080.0,118070.0,0.47205047]
[1753526296504,0.59689289,118080.0,118070.0,0.46358114]
[1753526296705,0.59689289,118080.0,118070.0,0.47205047]
[1753526296945,0.59689289,118080.0,118070.0,0.45511174]
[1753526297157,0.58842428,118080.0,118070.0,0.26878168]
[1753526297570,0.57995552,118080.0,118070.0,0.26878168]
[1753526297794,0.57784552,118080.0,118070.0,0.45511159]
[1753526297999,0.58869552,118080.0,118070.0,0.45511174]
[1753526298228,0.58869552,118080.0,118070.0,0.46358114]
[1753526300990,0.59080552,118080.0,118070.0,0.46054114]
[1753526301602,0.59080552,118080.0,118070.0,0.54805844]
[1753526301818,0.59080552,118080.0,118070.0,0.46358114]
[1753526302060,0.59080552,118080.0,118070.0,0.44146226]
[1753526302545,0.58233669,118080.0,118070.0,0.26360168]
[1753526302860,0.60663669,118080.0,118070.0,0.24160168]
[1753526303102,0.60663669,118080.0,118070.0,0.26440168]
[1753526306895,0.60663669,118080.0,118070.0,0.24160168]
[1753526307104,0.60968669,118080.0,118070.0,0.24160168]
[1753526307324,0.60663669,118080.0,118070.0,0.26440168]
[1753526307550,0.58233669,118080.0,118070.0,0.26440168]
[1753526308201,0.58233669,118080.0,118070.0,0.31147433]
[1753526308425,0.60788669,118080.0,118070.0,0.21684168]
[1753526308651,0.60788669,118080.0,118070.0,0.23965168]
[1753526309076,0.60483669,118080.0,118070.0,0.26305168]
[1753526309700,0.60483669,118080.0,118070.0,0.23965168]
[1753526309914,0.60788669,118080.0,118070.0,0.23965168]
[1753526310575,0.60483669,118080.0,118070.0,0.23965168]
[1753526310817,0.60788669,118080.0,118070.0,0.23965168]
[1753526311893,0.88706591,118080.0,118070.0,0.23901168]
[1753526312134,0.60788669,118080.0,118070.0,0.23901168]
[1753526312609,0.94808661,118080.0,118070.0,0.23901168]
[1753526312886,1.23123583,118080.0,118070.0,0.21620168]
[1753526313146,0.83123583,118080.0,118070.0,0.21620168]
[1753526313423,0.83123583,118080.0,118070.0,0.21616168]
[1753526313647,0.83031583,118080.0,118070.0,0.21616168]
[1753526314458,0.83031583,118080.0,118070.0,0.13168438]
[1753526314928,0.91479313,118080.0,118070.0,0.13168438]
[1753526315965,0.85143583,118080.0,118070.0,0.13168438]
[1753526316490,0.85051583,118080.0,118070.0,0.13168438]
[1753526316731,0.85051583,118080.0,118070.0,0.00048438]
[1753526317019,0.54908661,118080.0,118070.0,0.13160438]
[1753526317565,0.83131583,118080.0,118070.0,0.13160438]
[1753526318791,0.83131583,118080.0,118070.0,0.15441438]
[1753526319652,0.83131583,118080.0,118070.0,0.15457438]
[1753526320297,0.83131583,118080.0,118070.0,0.13176438]
[1753526320518,0.83131583,118080.0,118070.0,0.15457438]
[1753526320740,0.83131583,118080.0,118070.0,0.02329438]
[1753526320961,0.83131583,118080.0,118070.0,0.13172438]
[1753526321206,0.85051583,118080.0,118070.0,0.13172438]
[1753526321427,0.83131583,118080.0,118070.0,0.13172438]
[1753526321856,0.52353661,118080.0,118070.0,0.04649438]
[1753526321986,0.80576583,118080.0,118070.0,0.18265438]
[1753526322439,0.80576583,118080.0,118070.0,0.17969438]
[1753526322645,0.80576583,118080.0,118070.0,0.17769438]
[1753526323427,0.82796583,118080.0,118070.0,0.17769438]
[1753526323610,0.83101583,118080.0,118070.0,0.13168438]
[1753526323842,0.85021583,118080.0,118070.0,0.13168438]
[1753526324056,0.83101583,118080.0,118070.0,0.13168438]
[1753526324536,0.83101583,118080.0,118070.0,0.15449438]
[1753526327624,0.54573661,118080.0,118070.0,0.15449438]
[1753526327822,0.82796583,118080.0,118070.0,0.17799438]
[1753526328644,0.82796583,118080.0,118070.0,0.15449438]
[1753526329721,0.52142661,118080.0,118070.0,0.18295438]
[1753526329930,0.80365583,118080.0,118070.0,0.18295438]
[1753526330107,0.52142661,118080.0,118070.0,0.18295438]
[1753526331313,0.52337661,118080.0,118070.0,0.18295438]
[1753526332725,0.84058711,118080.0,118070.0,0.18295438]
[1753526333154,0.54872661,118080.0,118070.0,0.15449438]
[1753526333592,0.54567661,118080.0,118070.0,0.17699438]
[1753526333810,0.86288711,118080.0,118070.0,0.17699438]
[1753526334478,0.36031833,118080.0,118070.0,0.48423049]
[1753526334689,0.54663232,118080.0,118070.0,0.79297195]
[1753526334913,0.54663232,118080.0,118070.0,0.80991026]
[1753526334914,0.55510115,118080.0,118070.0,0.80991026]
[1753526335136,0.38572446,118080.0,118070.0,0.80991026]
[1753526335364,0.37725563,118080.0,118070.0,0.79297195]
[1753526335581,0.55510115,118080.0,118070.0,0.79297195]
[1753526336008,0.54663282,118080.0,118070.0,0.79297202]
[1753526336763,0.54663282,118080.0,118070.0,0.56870801]
[1753526336985,0.54663282,118080.0,118070.0,0.48423071]
[1753526337193,0.54663282,118080.0,118070.0,0.48423078]
[1753526337832,0.03725613,118080.0,118070.0,0.4926999]
[1753526338034,0.03725613,118080.0,118070.0,0.48423078]
[1753526338254,0.03725556,118080.0,118070.0,0.4926999]
[1753526338669,0.02878687,118080.0,118070.0,0.50116894]
[1753526338925,0.03725556,118080.0,118070.0,0.50116894]
[1753526339148,0.02878687,118080.0,118070.0,0.4926999]
[1753526339323,0.03725556,118080.0,118070.0,0.47576152]
[1753526340201,0.03725556,118080.0,118070.0,0.46729219]
[1753526340421,0.03725556,118080.0,118070.0,0.47576159]
[1753526341208,0.43725556,118080.0,118070.0,0.48423092]
[1753526341889,0.60663225,118080.0,118070.0,0.45882271]
[1753526342104,0.59816392,118080.0,118070.0,0.45882271]
[1753526342323,0.59816392,118080.0,118070.0,0.46729226]
[1753526342655,0.59816392,118080.0,118070.0,0.47576174]
[1753526342871,0.59816392,118080.0,118070.0,0.46729226]
[1753526343127,0.59816392,118080.0,118070.0,0.45882271]
[1753526343332,0.59816392,118080.0,118070.0,0.47576174]
[1753526343486,0.59816392,118080.0,118070.0,0.45882271]
[1753526343689,0.59816392,118080.0,118070.0,0.46729226]
[1753526343893,0.58969538,118080.0,118070.0,0.45882271]
[1753526344737,0.58122669,118080.0,118070.0,0.28943168]
[1753526344921,0.58122669,118080.0,118070.0,0.26643168]
[1753526345338,0.58317669,118080.0,118070.0,0.29053168]
[1753526345768,0.86527567,118080.0,118070.0,0.26347168]
[1753526346188,0.58337661,118080.0,118070.0,0.26347168]
[1753526346609,0.58337661,118080.0,118070.0,0.26653168]
[1753526347432,0.58337661,118080.0,118070.0,0.26347168]
[1753526347848,0.60878238,118080.0,118070.0,0.26347168]
[1753526348065,0.60031391,118080.0,118070.0,0.26653168]
[1753526349366,0.60031391,118080.0,118070.0,0.13533168]
[1753526349561,0.60031391,118080.0,118070.0,0.26725168]
[1753526349785,0.60031391,118080.0,118070.0,0.91096759]
[1753526349786,0.01185,118080.0,118070.0,0.91096759]
[1753526349994,0.01693515,118090.0,118080.0,0.24028232]
[1753526350217,0.01693515,118090.0,118080.0,0.63549868]
[1753526350475,0.40846747,118090.0,118080.0,0.63549868]
[1753526350664,0.4,118090.0,118080.0,0.63549868]
[1753526350862,0.4,118090.0,118080.0,0.71997598]
[1753526352647,0.4,118090.0,118080.0,0.43807692]
[1753526352860,0.4,118090.0,118080.0,0.72097598]
[1753526356056,0.4,118090.0,118080.0,0.72197598]
[1753526356899,0.4,118090.0,118080.0,0.44007692]
[1753526357065,0.4,118090.0,118080.0,0.72197598]
[1753526359440,0.40846747,118090.0,118080.0,0.72197598]
[1753526359786,0.4,118090.0,118080.0,0.72197598]
[1753526363093,0.4,118090.0,118080.0,0.85341598]
[1753526367887,0.4,118090.0,118080.0,0.57151692]
[1753526368076,0.4,118090.0,118080.0,0.85341598]
[1753526370904,0.4,118090.0,118080.0,0.76893868]
[1753526371213,0.4,118090.0,118080.0,0.48703962]
[1753526371447,0.4,118090.0,118080.0,0.76893868]
[1753526371707,0.4,118090.0,118080.0,0.48703962]
[1753526371927,0.4,118090.0,118080.0,0.76893868]
[1753526372299,0.4,118090.0,118080.0,0.57151692]
[1753526372466,0.4,118090.0,118080.0,0.85341598]
[1753526373673,0.40846754,118090.0,118080.0,0.48703962]
[1753526373876,0.40846754,118090.0,118080.0,0.76893868]
[1753526374107,0.00846754,118090.0,118080.0,0.76893868]
[1753526374660,0.19494977,118100.0,118090.0,0.22523039]
[1753526374661,0.36560154,118100.0,118090.0,0.22523039]
[1753526374891,0.36770154,118100.0,118090.0,0.44082769]
[1753526375093,0.36770154,118100.0,118090.0,0.46483769]
[1753526375363,0.36770154,118100.0,118090.0,0.55778282]
[1753526375548,0.36770154,118100.0,118090.0,0.82434978]
[1753526375841,0.36770154,118100.0,118090.0,0.53398289]
[1753526376046,0.36770154,118100.0,118090.0,0.81588195]
[1753526376344,0.36770154,118100.0,118090.0,0.44950559]
[1753526376554,0.36770154,118100.0,118090.0,0.46483769]
[1753526376788,0.36770154,118100.0,118090.0,0.47330559]